bitfinex-derivatives/quotes_SOLF0:USTF0_20250817
["timestamp","ask_amount","ask_price","bid_price","bid_amount"]
[1755427591642,2.82,192.31,192.27,3.01]
[1755427593340,5.84964178,192.38,192.27,3.01]
[1755427593544,10.70757231,192.37,192.27,3.01]
[1755427593748,8.19644861,192.36,192.27,3.01]
[1755427593939,2.82,192.34,192.27,3.01]
[1755427594139,2.82,192.32,192.27,3.01]
[1755427594342,2.82,192.3,192.27,3.01]
[1755427594538,2.82,192.29,192.27,3.01]
[1755427595344,2.82,192.31,192.27,3.01]
[1755427595542,6.50370619,192.3,192.27,3.01]
[1755427595840,2.82,192.3,192.27,3.01]
[1755427598242,2.82,192.29,192.27,3.01]
[1755427602644,2.82,192.3,192.27,3.01]
[1755427602853,2.82,192.29,192.27,3.01]
[1755427604650,2.82,192.3,192.27,3.01]
[1755427604958,2.82,192.29,192.27,3.01]
[1755427606050,2.82,192.3,192.27,3.01]
[1755427609060,2.98,192.29,192.27,3.01]
[1755427610361,2.98,192.3,192.27,3.01]
[1755427614862,2.98,192.36,192.27,3.01]
[1755427615051,8.19733563,192.35,192.27,3.01]
[1755427615256,2.98,192.33,192.27,3.01]
[1755427615561,2.98,192.31,192.27,3.01]
[1755427615761,2.98,192.29,192.27,3.01]
[1755427616363,2.98,192.3,192.27,3.01]
[1755427616960,5.84964178,192.37,192.27,3.01]
[1755427617164,2.98,192.35,192.27,3.04]
[1755427617364,2.98,192.33,192.27,3.04]
[1755427617566,2.98,192.31,192.27,3.04]
[1755427617765,2.98,192.29,192.27,3.04]
[1755427618161,5.84964178,192.37,192.27,3.04]
[1755427618461,2.98,192.35,192.27,3.04]
[1755427618654,8.19276188,192.34,192.27,3.04]
[1755427618862,2.98,192.32,192.27,3.04]
[1755427619057,3.68364413,192.31,192.27,3.04]
[1755427619258,6.66364413,192.3,192.27,3.04]
[1755427619465,2.98,192.3,192.27,3.04]
[1755427620266,2.98,192.29,192.27,3.04]
[1755427620463,2.98,192.36,192.26,132.42]
[1755427620766,2.98,192.34,192.24,3.04]
[1755427620955,2.98,192.32,192.24,3.04]
[1755427621154,2.98,192.3,192.24,3.04]
[1755427621359,2.98,192.28,192.24,3.04]
[1755427621563,2.98,192.34,192.24,3.04]
[1755427621866,2.98,192.32,192.24,3.04]
[1755427622068,3.68405808,192.31,192.24,3.04]
[1755427622365,2.98,192.34,192.24,3.04]
[1755427622569,11.17283828,192.33,192.24,3.04]
[1755427622770,8.19283828,192.32,192.24,3.04]
[1755427622963,3.68370596,192.31,192.24,3.04]
[1755427623164,6.66370596,192.3,192.24,3.04]
[1755427623362,2.98,192.3,192.24,3.04]
[1755427624067,2.98,192.28,192.24,3.04]
[1755427624268,5.84964178,192.35,192.24,3.04]
[1755427624269,2.98,192.27,192.24,3.04]
[1755427624666,2.98,192.33,192.24,3.04]
[1755427624865,2.98,192.31,192.24,3.04]
[1755427625060,3.75946903,192.3,192.24,3.04]
[1755427625265,2.98,192.33,192.24,3.04]
[1755427625467,11.24738326,192.32,192.24,3.04]
[1755427625665,3.7589161,192.31,192.24,3.04]
[1755427625975,3.7589161,192.3,192.24,3.04]
[1755427626268,3.7589161,192.29,192.24,3.04]
[1755427626461,2.98,192.32,192.24,3.04]
[1755427626769,3.83045472,192.31,192.24,3.04]
[1755427626967,3.83045472,192.3,192.24,3.04]
[1755427627167,3.83045472,192.29,192.24,3.04]
[1755427627465,2.98,192.32,192.24,3.04]
[1755427627666,3.83048686,192.31,192.24,3.04]
[1755427627868,3.83048686,192.3,192.24,3.04]
[1755427628071,3.83048686,192.29,192.24,3.04]
[1755427628372,2.98,192.32,192.24,3.04]
[1755427628565,3.83071876,192.31,192.24,3.04]
[1755427628769,3.83071876,192.3,192.24,3.04]
[1755427628966,3.83071876,192.29,192.24,3.04]
[1755427629166,2.98,192.31,192.24,3.04]
[1755427629366,3.83093068,192.3,192.24,3.04]
[1755427629566,3.83093068,192.29,192.24,3.04]
[1755427629867,2.98,192.31,192.24,3.04]
[1755427630065,3.83097801,192.3,192.24,3.04]
[1755427630270,3.83097801,192.29,192.24,3.04]
[1755427630468,2.98,192.31,192.24,3.04]
[1755427630670,3.83084923,192.3,192.24,3.04]
[1755427630971,3.83084923,192.29,192.24,3.04]
[1755427631171,2.98,192.31,192.24,3.04]
[1755427631370,3.83016501,192.3,192.24,3.04]
[1755427631570,3.83016501,192.29,192.24,3.04]
[1755427631771,2.98,192.31,192.24,3.04]
[1755427631972,3.83034757,192.3,192.24,3.04]
[1755427632173,2.98,192.31,192.24,3.04]
[1755427632369,3.83915464,192.3,192.24,3.04]
[1755427632675,2.98,192.31,192.24,3.04]
[1755427632968,3.83899011,192.3,192.24,3.04]
[1755427633175,2.98,192.31,192.24,3.04]
[1755427633369,3.83937975,192.3,192.24,3.04]
[1755427633672,2.98,192.32,192.24,3.04]
[1755427633876,3.83849122,192.31,192.24,3.04]
[1755427634065,2.98,192.34,192.24,3.04]
[1755427634269,6.81819574,192.33,192.24,3.04]
[1755427634469,3.83819574,192.32,192.24,3.04]
[1755427634665,3.83819574,192.31,192.24,3.04]
[1755427634871,2.98,192.33,192.24,3.04]
[1755427635069,3.83766335,192.32,192.24,3.04]
[1755427635273,3.83766335,192.31,192.24,3.04]
[1755427635575,2.98,192.33,192.24,3.04]
[1755427635776,3.83716793,192.32,192.24,3.04]
[1755427635977,3.83716793,192.31,192.24,3.04]
[1755427636170,2.98,192.33,192.24,3.04]
[1755427636370,3.83856155,192.32,192.24,3.04]
[1755427636672,3.83856155,192.31,192.24,3.04]
[1755427636870,2.98,192.33,192.24,3.04]
[1755427637073,3.83818337,192.32,192.24,3.04]
[1755427637375,3.83818337,192.31,192.24,3.04]
[1755427637575,2.98,192.32,192.24,3.04]
[1755427637773,3.83781539,192.31,192.24,3.04]
[1755427637977,2.98,192.32,192.24,3.04]
[1755427638179,3.83781539,192.31,192.24,3.04]
[1755427638379,2.98,192.32,192.24,3.04]
[1755427638582,3.8374902,192.31,192.24,3.04]
[1755427638779,2.98,192.32,192.24,3.04]
[1755427638972,3.8374902,192.31,192.24,3.04]
[1755427639173,2.8,192.33,192.24,3.04]
[1755427639370,3.83744603,192.32,192.24,3.04]
[1755427639570,2.8,192.38,192.24,11.75906456]
[1755427639772,11.14309233,192.37,192.25,2.99]
[1755427639975,3.83682875,192.36,192.25,8.71906456]
[1755427640181,3.83682875,192.35,192.26,2.99]
[1755427640382,2.8,192.36,192.26,2.99]
[1755427640576,3.83501826,192.35,192.26,2.99]
[1755427640881,2.8,192.4,192.27,2.99]
[1755427641081,11.1390392,192.39,192.29,2.99]
[1755427641282,3.83492225,192.38,192.29,2.99]
[1755427641484,2.8,192.39,192.29,2.99]
[1755427641675,3.83186312,192.38,192.29,2.99]
[1755427641875,2.8,192.39,192.29,2.99]
[1755427672910,2.8,192.39,192.28,128.54]
[1755427672911,2.8,192.39,192.31,2.86]
[1755427681619,2.85,192.4,192.31,2.86]
[1755427681814,2.85,192.47,192.31,2.86]
[1755427682023,2.85,192.45,192.31,2.86]
[1755427682218,2.85,192.43,192.31,2.86]
[1755427682423,2.85,192.41,192.31,2.86]
[1755427684423,2.85,192.41,192.31,8.71906456]
[1755427684623,2.85,192.41,192.32,8.71906456]
[1755427684825,2.85,192.48,192.34,2.86]
[1755427685022,2.85,192.46,192.35,2.86]
[1755427685220,5.84964178,192.51,192.37,2.86]
[1755427685221,3.82392878,192.45,192.37,2.86]
[1755427685421,6.67392878,192.44,192.37,2.86]
[1755427685620,2.85,192.44,192.37,2.86]
[1755427687824,2.85,192.52,192.37,2.86]
[1755427688025,2.85,192.5,192.37,2.86]
[1755427688231,2.85,192.48,192.37,2.86]
[1755427688529,2.85,192.46,192.37,2.86]
[1755427699838,3.0,192.52,192.37,2.86]
[1755427700040,3.0,192.5,192.37,2.86]
[1755427700334,3.0,192.48,192.37,2.86]
[1755427706136,3.0,192.48,192.38,127.48]
[1755427706328,3.0,192.48,192.39,2.97]
[1755427714245,3.0,192.51,192.39,2.97]
[1755427721351,3.0,192.51,192.4,348.92]
[1755427721552,3.0,192.51,192.41,2.97]
[1755427725155,3.0,192.51,192.42,127.62]
[1755427725352,3.0,192.51,192.43,2.97]
[1755427727952,3.0,192.51,192.44,127.54]
[1755427728156,3.83196427,192.5,192.44,127.54]
[1755427728353,2.8,192.49,192.44,127.54]
[1755427729159,2.8,192.49,192.44,130.53]
[1755427730150,2.8,192.49,192.44,127.54]
[1755427730351,2.8,192.49,192.45,2.99]
[1755427730752,2.8,192.49,192.46,2.99]
[1755427731356,2.8,192.49,192.44,130.53]
[1755427732253,2.8,192.49,192.45,2.99]
[1755427732457,2.8,192.48,192.45,2.99]
[1755427732761,2.8,192.57,192.45,2.99]
[1755427732959,3.83242349,192.56,192.45,2.99]
[1755427733157,2.8,192.55,192.45,2.99]
[1755427733462,2.8,192.55,192.47,2.99]
[1755427733658,2.8,192.55,192.48,127.7]
[1755427733960,2.8,192.55,192.49,2.99]
[1755427737656,2.8,192.6,192.49,2.99]
[1755427737954,2.8,192.58,192.49,2.99]
[1755427740759,3.79757562,192.57,192.49,2.99]
[1755427740956,2.8,192.55,192.5,130.55]
[1755427741157,2.8,192.55,192.52,2.99]
[1755427742355,2.8,192.6,192.42,2.99]
[1755427742559,2.8,192.58,192.43,127.58]
[1755427742762,2.8,192.56,192.44,2.99]
[1755427742960,2.8,192.54,192.44,2.99]
[1755427752980,3.79836419,192.53,192.44,2.99]
[1755427753273,5.84964178,192.6,192.44,2.99]
[1755427753274,2.8,192.52,192.44,2.99]
[1755427758482,2.95,192.59,192.44,2.99]
[1755427758681,2.95,192.57,192.44,2.99]
[1755427758982,2.95,192.55,192.44,2.99]
[1755427759190,3.80157754,192.54,192.44,2.99]
[1755427759385,2.95,192.53,192.44,2.99]
[1755427760284,2.95,192.6,192.44,2.99]
[1755427760488,2.95,192.58,192.44,2.99]
[1755427760793,2.95,192.56,192.45,3.0]
[1755427772398,2.95,192.56,192.45,11.71906456]
[1755427772599,2.95,192.56,192.46,3.0]
[1755427773188,2.95,192.6,192.46,3.0]
[1755427773388,2.95,192.58,192.46,3.0]
[1755427775201,2.95,192.56,192.46,3.0]
[1755427781799,2.95,192.54,192.48,3.0]
[1755427783009,2.95,192.54,192.44,3.0]
[1755427783210,2.95,192.54,192.45,127.4]
[1755427783403,2.95,192.54,192.46,3.0]
[1755427783707,2.95,192.52,192.46,3.0]
[1755427784708,2.95,192.59,192.46,3.0]
[1755427785007,2.95,192.57,192.46,3.0]
[1755427785305,2.95,192.55,192.46,3.0]
[1755427785500,2.95,192.53,192.46,3.0]
[1755427786706,2.95,192.53,192.47,127.38]
[1755427786904,2.95,192.53,192.5,3.0]
[1755427787107,2.95,192.53,192.48,3.0]
[1755427788103,2.92,192.52,192.48,3.0]
[1755427788506,2.92,192.51,192.48,3.0]
[1755427789514,2.92,192.5,192.48,3.0]
[1755427789810,2.92,192.59,192.48,2.82]
[1755427790109,2.92,192.57,192.48,2.82]
[1755427790305,2.92,192.55,192.48,2.82]
[1755427790498,2.92,192.53,192.48,2.82]
[1755427790703,2.92,192.53,192.49,2.82]
[1755427793812,2.92,192.53,192.5,2.82]
[1755427795510,2.92,192.53,192.47,127.38]
[1755427795809,2.92,192.51,192.48,2.82]
[1755427798214,2.92,192.51,192.47,127.38]
[1755427798510,2.92,192.51,192.49,2.82]
[1755427799416,2.92,192.51,192.5,2.82]
[1755427799811,2.92,192.58,192.48,2.82]
[1755427800012,2.92,192.56,192.48,2.82]
[1755427800310,2.92,192.54,192.48,2.82]
[1755427800513,2.92,192.52,192.48,2.82]
[1755427801412,2.92,192.59,192.48,2.82]
[1755427801618,2.92,192.57,192.48,2.82]
[1755427801816,2.92,192.55,192.48,2.82]
[1755427802019,2.92,192.53,192.48,2.82]
[1755427802916,3.80197593,192.52,192.48,2.82]
[1755427803117,2.92,192.53,192.48,2.82]
[1755427807818,2.92,192.52,192.48,2.82]
[1755427809822,2.92,192.51,192.48,2.82]
[1755427810018,2.92,192.6,192.49,2.82]
[1755427810223,2.92,192.58,192.49,2.82]
[1755427810523,3.80131134,192.57,192.49,2.82]
[1755427810737,3.80131134,192.56,192.49,2.82]
[1755427810917,2.92,192.58,192.49,2.82]
[1755427811118,3.80052879,192.57,192.49,2.82]
[1755427811420,2.92,192.58,192.49,2.82]
[1755427811726,3.80038815,192.57,192.49,2.82]
[1755427812030,2.92,192.58,192.49,2.82]
[1755427812220,2.92,192.56,192.49,2.82]
[1755427813629,2.92,192.58,192.49,2.82]
[1755427814527,2.92,192.56,192.49,2.82]
[1755427816124,2.92,192.54,192.49,2.82]
[1755427816324,2.92,192.54,192.5,2.82]
[1755427816724,2.92,192.54,192.48,2.82]
[1755427817930,3.07,192.56,192.48,2.82]
[1755427820432,3.07,192.6,192.48,2.82]
[1755427820731,3.07,192.58,192.48,2.82]
[1755427820932,3.80011709,192.57,192.48,2.82]
[1755427821132,3.07,192.56,192.48,2.82]
[1755427835541,3.07,192.6,192.48,2.82]
[1755427835744,3.07,192.58,192.48,2.82]
[1755427835945,3.07,192.56,192.48,2.82]
[1755427841342,3.07,192.6,192.48,2.82]
[1755427842246,3.07,192.58,192.48,2.82]
[1755427844247,3.07,192.63,192.48,2.82]
[1755427844442,3.07,192.61,192.48,2.82]
[1755427844647,3.83847016,192.6,192.48,2.82]
[1755427844850,3.07,192.66,192.48,2.82]
[1755427845047,8.14432142,192.65,192.48,2.82]
[1755427845352,3.07,192.63,192.48,2.82]
[1755427845558,5.84964178,192.67,192.48,2.82]
[1755427845559,3.83846755,192.62,192.48,2.82]
[1755427845752,6.90846755,192.61,192.48,2.82]
[1755427845946,6.90846755,192.6,192.48,2.82]
[1755427846147,3.07,192.59,192.48,2.82]
[1755427846750,3.07,192.59,192.5,2.96]
[1755427847558,2.81,192.67,192.5,2.96]
[1755427847758,2.81,192.65,192.5,2.96]
[1755427847958,2.81,192.63,192.5,2.96]
[1755427848158,2.81,192.61,192.5,2.96]
[1755427853266,2.81,192.61,192.52,2.89]
[1755427857362,3.83747605,192.6,192.52,2.89]
[1755427857566,2.81,192.59,192.54,2.89]
[1755427857757,2.81,192.59,192.55,130.15]
[1755427858165,2.81,192.59,192.55,127.26]
[1755427858357,2.81,192.59,192.56,127.26]
[1755427859456,2.81,192.66,192.57,2.89]
[1755427859657,2.81,192.64,192.57,2.89]
[1755427859857,2.81,192.62,192.56,127.26]
[1755427860060,2.81,192.6,192.56,127.26]
[1755427860260,3.83758596,192.59,192.56,127.26]
[1755427860565,5.84964178,192.66,192.56,127.26]
[1755427860566,2.81,192.65,192.56,127.26]
[1755427860765,2.81,192.63,192.56,127.26]
[1755427860968,2.81,192.61,192.53,2.89]
[1755427861265,2.81,192.59,192.53,127.24]
[1755427861567,5.84964178,192.65,192.53,127.24]
[1755427861568,2.81,192.57,192.54,2.89]
[1755427862853,3.8394498,192.56,192.51,127.24]
[1755427863069,6.6494498,192.55,192.51,127.24]
[1755427863267,2.81,192.54,192.51,130.13]
[1755427863459,2.81,192.54,192.45,348.82]
[1755427863661,2.81,192.54,192.47,2.89]
[1755427864866,2.81,192.54,192.48,0.97352]
[1755427865067,2.81,192.54,192.49,2.89]
[1755427865860,3.83879861,192.53,192.48,0.97352]
[1755427866163,2.81,192.54,192.48,128.21352]
[1755427866365,3.8380672,192.53,192.48,128.21352]
[1755427866568,2.81,192.52,192.48,131.10352]
[1755427866966,2.81,192.52,192.49,2.89]
[1755427867359,2.81,192.52,192.48,128.21352]
[1755427867558,3.83759569,192.51,192.48,0.97352]
[1755427867768,2.81,192.5,192.48,0.97352]
[1755427873269,2.81,192.58,192.48,0.97352]
[1755427873469,13.94678572,192.57,192.48,0.97352]
[1755427873668,10.90714394,192.56,192.48,0.97352]
[1755427873865,2.81,192.54,192.48,0.97352]
[1755427874066,2.81,192.52,192.48,0.97352]
[1755427874267,3.82497504,192.51,192.48,0.97352]
[1755427874471,2.81,192.5,192.48,0.97352]
[1755427883869,2.81,192.5,192.48,4.04352]
[1755427889483,2.81,192.5,192.48,0.97352]
[1755427892480,2.81,192.5,192.48,4.04352]
[1755427892983,2.81,192.5,192.48,0.97352]
[1755427893584,5.84964178,192.58,192.49,3.07]
[1755427893884,8.08409774,192.57,192.49,3.07]
[1755427894082,8.08409774,192.56,192.49,3.07]
[1755427894387,2.96,192.54,192.49,3.07]
[1755427894582,3.8135383,192.53,192.49,3.07]
[1755427894784,2.96,192.52,192.49,3.07]
[1755427894980,2.96,192.5,192.49,3.07]
[1755427896485,6.77544108,192.5,192.49,3.07]
[1755427900083,6.77909933,192.5,192.49,3.07]
[1755427900279,2.96,192.5,192.49,3.07]
[1755427900585,6.7802902,192.5,192.49,3.07]
[1755427900784,2.96,192.54,192.49,3.07]
[1755427901084,6.78019042,192.53,192.49,3.07]
[1755427901287,3.82019042,192.52,192.49,3.07]
[1755427901595,3.82019042,192.51,192.49,3.07]
[1755427901984,6.78019042,192.51,192.5,3.07]
[1755427902788,2.96,192.5,192.48,4.04352]
[1755427902980,6.78019042,192.49,192.48,4.04352]
[1755427907082,3.82019042,192.49,192.48,4.04352]
[1755427910489,6.89019042,192.49,192.48,4.04352]
[1755427910688,6.89019042,192.49,192.48,0.97352]
[1755427911291,6.89019042,192.49,192.48,3.96352]
[1755427911487,11.58855391,192.49,192.48,3.96352]
[1755427912890,11.58855391,192.49,192.48,0.97352]
[1755427913091,3.07,192.48,192.45,2.99]
[1755427913389,3.07,192.46,192.45,2.99]
[1755427913590,11.58855391,192.46,192.45,2.99]
[1755427914587,8.51855391,192.46,192.38,2.99]
[1755427914797,11.58855391,192.45,192.38,2.99]
[1755427915089,6.89019042,192.44,192.38,2.99]
[1755427915287,3.82019042,192.43,192.38,2.99]
[1755427915483,3.07,192.46,192.38,2.99]
[1755427915689,8.53671001,192.45,192.38,2.99]
[1755427915890,3.83716817,192.44,192.38,2.99]
[1755427916092,3.83716817,192.43,192.38,2.99]
[1755427916279,5.84964178,192.5,192.38,2.99]
[1755427916280,8.91964178,192.5,192.38,2.99]
[1755427916596,8.53630241,192.49,192.38,2.99]
[1755427916884,8.53630241,192.48,192.38,2.99]
[1755427917088,8.53630241,192.47,192.38,2.99]
[1755427917289,8.53630241,192.46,192.38,2.99]
[1755427917490,3.83679874,192.45,192.38,2.99]
[1755427917680,3.07,192.48,192.38,2.99]
[1755427917883,8.55410629,192.47,192.38,2.99]
[1755427918091,8.55410629,192.46,192.38,2.99]
[1755427918283,3.83723648,192.45,192.38,2.99]
[1755427918488,3.07,192.48,192.38,2.99]
[1755427918691,3.07,192.46,192.38,2.99]
[1755427918891,3.07,192.44,192.38,2.99]
[1755427919087,3.83783331,192.43,192.38,2.99]
[1755427919293,3.07,192.44,192.38,2.99]
[1755427919594,3.83790287,192.43,192.38,2.99]
[1755427919791,3.07,192.44,192.38,2.99]
[1755427919989,3.07,192.42,192.35,2.99]
[1755427920291,27.28928356,192.58,192.35,2.99]
[1755427920292,3.07,192.4,192.35,2.99]
[1755427921288,3.8387115,192.39,192.35,2.99]
[1755427921593,3.07,192.42,192.35,2.99]
[1755427921793,8.55182855,192.41,192.35,2.99]
[1755427921994,3.83621533,192.4,192.35,2.99]
[1755427922196,3.07,192.42,192.35,2.99]
[1755427922396,3.83460357,192.41,192.35,2.99]
[1755427922693,3.83460357,192.4,192.35,2.99]
[1755427922899,3.07,192.42,192.35,2.99]
[1755427923094,3.83460357,192.41,192.35,2.99]
[1755427923292,3.07,192.42,192.35,2.99]
[1755427923493,3.83332646,192.41,192.35,2.99]
[1755427923792,3.83332646,192.4,192.35,2.99]
[1755427923994,3.07,192.38,192.35,2.99]
[1755427924197,5.84964178,192.47,192.35,2.99]
[1755427924402,3.07,192.45,192.35,2.99]
[1755427924596,3.07,192.43,192.35,2.99]
[1755427924795,3.07,192.41,192.35,2.99]
[1755427924998,3.07,192.39,192.35,2.99]
[1755427925199,3.07,192.38,192.35,2.99]
[1755427925391,5.84964178,192.46,192.35,2.99]
[1755427925593,3.07,192.39,192.35,2.99]
[1755427928094,3.07,192.38,192.35,2.99]
[1755427931201,3.07,192.39,192.35,2.99]
[1755427931702,3.07,192.38,192.35,2.99]
[1755427933405,5.84964178,192.47,192.35,2.99]
[1755427933607,8.52233318,192.46,192.35,2.99]
[1755427933806,3.07,192.44,192.35,2.99]
[1755427934006,3.07,192.42,192.35,2.99]
[1755427934208,3.82291792,192.41,192.35,2.99]
[1755427934509,3.07,192.4,192.35,2.99]
[1755427935309,5.84964178,192.48,192.35,2.99]
[1755427935500,3.07,192.39,192.35,2.99]
[1755427939520,2.95,192.47,192.35,2.99]
[1755427939721,2.95,192.45,192.35,2.99]
[1755427939926,8.51697886,192.44,192.35,2.99]
[1755427940125,2.95,192.42,192.35,2.99]
[1755427940425,2.95,192.4,192.35,2.99]
[1755427941329,2.95,192.4,192.36,3.07]
[1755427941924,2.95,192.4,192.37,3.07]
[1755427942228,2.95,192.4,192.34,3.07]
[1755427945532,2.95,192.4,192.26,0.90388437]
[1755427945722,2.95,192.38,192.27,3.07]
[1755427945921,3.82004952,192.37,192.27,3.07]
[1755427946231,2.95,192.35,192.2,3.07]
[1755427946433,2.95,192.35,192.24,0.90497738]
[1755427946633,2.95,192.35,192.25,3.07]
[1755427949332,2.95,192.37,192.25,3.07]
[1755427949519,2.95,192.39,192.25,3.07]
[1755427955234,2.95,192.37,192.25,3.07]
[1755427956527,3.82272145,192.36,192.25,3.07]
[1755427956732,2.95,192.35,192.25,3.07]
[1755427960237,2.95,192.33,192.25,3.07]
[1755427963144,3.83016942,192.32,192.25,3.07]
[1755427963341,2.95,192.33,192.25,3.07]
[1755427963543,2.95,192.31,192.25,3.07]
[1755427966042,2.95,192.33,192.25,3.07]
[1755427983553,2.83,192.31,192.25,3.07]
[1755427983748,8.77446267,192.4,192.26,2.91]
[1755427983749,2.83,192.29,192.26,2.91]
[1755427987351,2.83,192.29,192.21,2.91]
[1755427991265,2.83,192.27,192.21,2.91]
[1755427994666,2.83,192.35,192.21,2.91]
[1755427994865,2.83,192.33,192.21,2.91]
[1755427995065,2.83,192.31,192.21,2.91]
[1755427999371,74.23173212,192.39,192.21,2.91]
[1755427999372,2.86,192.29,192.21,2.91]
[1755428001573,2.86,192.27,192.21,2.91]
[1755428002674,2.86,192.35,192.21,2.91]
[1755428002875,2.86,192.33,192.21,2.91]
[1755428003069,2.86,192.31,192.21,2.91]
[1755428003272,3.8563182,192.3,192.21,2.91]
[1755428003471,2.86,192.28,192.21,2.91]
[1755428005175,2.86,192.26,192.21,2.91]
[1755428005767,2.86,192.25,192.21,2.91]
[1755428006472,2.86,192.27,192.21,2.91]
[1755428007974,2.86,192.34,192.21,2.91]
[1755428008170,2.86,192.32,192.21,2.91]
[1755428008374,2.86,192.3,192.21,2.91]
[1755428008573,6.7160433,192.29,192.21,2.91]
[1755428008773,2.86,192.29,192.21,2.91]
[1755428012680,5.84964178,192.36,192.21,2.91]
[1755428012681,2.86,192.35,192.21,2.91]
[1755428012878,2.86,192.33,192.21,2.91]
[1755428013076,2.86,192.31,192.21,2.91]
[1755428013273,2.86,192.29,192.21,2.91]
[1755428015080,2.86,192.31,192.21,2.91]
[1755428027794,3.01,192.38,192.21,2.91]
[1755428027994,3.01,192.36,192.21,2.91]
[1755428028190,3.852278,192.35,192.21,2.91]
[1755428028398,3.01,192.34,192.21,2.91]
[1755428030590,11.69928356,192.5,192.23,2.95]
[1755428030591,3.01,192.46,192.23,2.95]
[1755428030892,3.01,192.44,192.24,130.01]
[1755428031087,3.8493866,192.43,192.25,2.95]
[1755428031296,3.01,192.41,192.25,2.95]
[1755428031498,3.01,192.39,192.25,2.95]
[1755428031703,3.01,192.42,192.25,2.95]
[1755428031902,3.01,192.5,192.28,2.95]
[1755428032099,3.01,192.48,192.33,8.66868068]
[1755428032297,3.01,192.48,192.35,2.95]
[1755428050003,3.01,192.48,192.37,2.95]
[1755428055717,3.01,192.61,192.37,2.95]
[1755428056017,3.01,192.59,192.37,2.95]
[1755428056210,3.72756231,192.58,192.37,2.95]
[1755428056406,3.01,192.57,192.37,2.95]
[1755428058618,3.01,192.57,192.38,62.0]
[1755428058916,3.01,192.57,192.39,2.97]
[1755428059112,3.01,192.57,192.41,2.97]
[1755428071220,3.73560608,192.56,192.41,2.97]
[1755428071416,2.99,192.55,192.41,2.97]
[1755428072923,5.84964178,192.63,192.41,2.97]
[1755428073121,2.99,192.59,192.41,2.97]
[1755428073424,2.99,192.57,192.41,2.97]
[1755428083427,2.99,192.57,192.43,8.66868068]
[1755428083630,2.99,192.57,192.44,2.97]
[1755428084233,2.99,192.57,192.45,2.97]